bitfinex/quotes_ETHUSD_20250620
["timestamp","ask_amount","ask_price","bid_price","bid_amount"]
[1750424236328,4.68177208,2554.3,2553.9,3.91557112]
[1750424236527,0.7668,2554.3,2553.9,3.91557112]
[1750424236912,0.7668,2554.3,2554.0,3.91540633]
[1750424237099,0.7668,2554.3,2553.7,0.7956]
[1750424237304,0.7668,2554.3,2554.1,3.91524837]
[1750424238199,0.7668,2554.3,2554.0,3.91533683]
[1750424238401,0.7668,2554.3,2553.8,0.47116389]
[1750424238606,0.7668,2554.3,2554.1,3.91512879]
[1750424238821,0.7668,2554.3,2554.2,3.91512019]
[1750424239027,1.13306265,2554.3,2554.2,3.91512019]
[1750424239323,0.36626265,2554.3,2554.2,3.91512019]
[1750424239636,8.36726265,2554.3,2554.2,3.91512019]
[1750424240129,8.36725753,2554.3,2554.2,3.91512019]
[1750424240326,8.36725931,2554.3,2554.1,3.91518454]
[1750424240504,8.001,2554.3,2554.1,3.91518454]
[1750424241211,8.001,2554.3,2554.2,3.91512019]
[1750424241429,8.36728724,2554.3,2554.2,3.91512019]
[1750424241934,8.36728711,2554.3,2554.2,3.91512019]
[1750424243222,8.36730276,2554.3,2554.2,3.91512019]
[1750424244417,8.36733493,2554.3,2554.2,3.91512019]
[1750424245095,8.36733579,2554.3,2554.2,3.91512019]
[1750424247650,0.36633579,2554.3,2554.2,5.46435771]
[1750424247830,6.359,2554.4,2554.3,3.91483205]
[1750424248156,6.72534562,2554.4,2554.3,3.91483205]
[1750424248819,6.72538941,2554.4,2554.3,3.91483205]
[1750424249449,6.72538941,2554.4,2554.1,3.91523249]
[1750424249771,0.36638941,2554.3,2554.1,3.91525826]
[1750424249914,7.1677,2554.4,2554.1,3.91525826]
[1750424250121,0.36639207,2554.3,2554.1,3.91525826]
[1750424250359,7.1677,2554.4,2554.1,3.91525826]
[1750424250646,0.36639184,2554.3,2554.2,3.91511933]
[1750424251353,0.36639184,2554.3,2554.1,3.91522041]
[1750424251553,7.1677,2554.4,2554.1,3.91522041]
[1750424251720,0.36636646,2554.3,2554.1,3.91522041]
[1750424251922,7.1677,2554.4,2554.2,3.91508925]
[1750424252248,0.36636314,2554.3,2554.2,3.91508925]
[1750424252457,2.00536314,2554.3,2554.1,3.91514883]
[1750424252756,1.639,2554.3,2554.2,3.91512019]
[1750424252936,2.00535989,2554.3,2554.2,3.91512019]
[1750424253325,2.00535989,2554.3,2554.1,3.91519189]
[1750424253525,1.639,2554.3,2554.1,3.91519189]
[1750424253945,1.639,2554.3,2554.0,3.9153373]
[1750424254164,1.639,2554.3,2554.1,3.9152718]
[1750424254342,1.639,2554.3,2553.9,3.91551036]
[1750424254544,0.36636909,2554.2,2553.9,3.91558009]
[1750424254743,1.639,2554.3,2554.0,3.91537599]
[1750424258566,0.3664642,2554.2,2554.0,3.91537599]
[1750424258866,1.639,2554.3,2554.0,3.91537599]
[1750424259254,0.36646275,2554.2,2554.0,3.91537599]
[1750424259458,1.639,2554.3,2554.0,3.91537599]
[1750424259634,0.3664644,2554.2,2554.0,3.91537599]
[1750424259836,1.639,2554.3,2554.0,4.69122277]
[1750424260132,0.36648338,2554.2,2554.1,3.91527348]
[1750424261872,0.36648338,2554.2,2554.0,4.6911899]
[1750424262186,1.639,2554.3,2554.0,4.6911899]
[1750424262360,0.36657635,2554.2,2554.0,4.6911899]
[1750424262536,1.639,2554.3,2554.0,4.6911899]
[1750424262736,0.36675087,2554.2,2554.1,3.91527348]
[1750424262938,0.36675087,2554.2,2554.0,4.69118172]
[1750424263134,6.71775087,2554.1,2554.0,3.91533494]
[1750424263473,6.71775678,2554.1,2554.0,3.91533494]
[1750424264472,6.71814363,2554.1,2554.0,3.91533494]
[1750424265668,6.71814363,2554.1,2553.9,3.91553662]
[1750424265859,0.36712607,2554.0,2553.9,3.91553662]
[1750424266055,6.351,2554.1,2553.9,3.91553662]
[1750424266261,0.36713278,2554.0,2553.9,3.91553662]
[1750424266475,6.351,2554.1,2553.9,3.91553662]
[1750424266773,6.351,2554.1,2554.0,3.91542678]
[1750424267066,6.71808873,2554.1,2554.0,3.91542678]
[1750424267258,6.71808809,2554.1,2554.0,3.91542678]
[1750424268870,6.71808809,2554.1,2553.9,3.91553662]
[1750424268871,6.71807765,2554.1,2553.9,3.91549883]
[1750424269071,6.351,2554.1,2554.0,3.91542678]
[1750424269270,6.71808174,2554.1,2554.0,3.91542678]
[1750424269659,6.71808174,2554.1,2553.9,3.9155199]
[1750424269853,6.351,2554.1,2553.8,4.38678152]
[1750424270079,0.3670851,2554.0,2553.9,3.91558009]
[1750424270375,0.3670851,2554.0,2553.8,0.47116389]
[1750424270579,0.36707896,2553.9,2553.5,6.00460951]
[1750424270776,0.36707896,2553.8,2553.5,6.00460951]
[1750424270981,0.36707896,2553.7,2553.5,6.00460951]
[1750424271180,14.73512327,2554.0,2553.5,6.00460951]
[1750424271380,0.73420339,2553.9,2553.5,6.00460951]
[1750424271573,0.36709977,2553.8,2553.5,6.00460951]
[1750424271768,0.36709977,2553.7,2553.5,7.07612158]
[1750424272078,0.36710551,2553.6,2553.5,7.07620414]
[1750424272278,0.36710551,2553.6,2553.5,6.00469207]
[1750424273397,0.36710943,2553.6,2553.5,6.00469207]
[1750424273600,1.632,2553.8,2553.5,6.00469207]
[1750424273754,0.36671431,2553.7,2553.5,6.00469207]
[1750424273954,1.632,2553.8,2553.5,2.08849862]
[1750424274155,0.36671452,2553.7,2553.5,2.08849862]
[1750424274357,1.632,2553.8,2553.5,2.08849862]
[1750424274607,0.3667193,2553.7,2553.5,2.08849862]
[1750424274755,1.632,2553.8,2553.5,2.08849862]
[1750424274959,0.36671792,2553.7,2553.5,2.08849862]
[1750424275303,1.632,2553.8,2553.5,2.08849862]
[1750424275596,0.36672474,2553.7,2553.5,2.08849862]
[1750424275826,1.632,2553.8,2553.5,6.0046435]
[1750424276091,0.36648362,2553.7,2553.5,6.0046435]
[1750424276292,1.632,2553.8,2553.5,6.0046435]
[1750424276595,0.3664828,2553.7,2553.5,2.08849862]
[1750424276756,1.632,2553.8,2553.5,2.08849862]
[1750424277091,6.71548279,2553.7,2553.5,2.08849862]
[1750424277265,6.349,2553.7,2553.5,6.00467496]
[1750424277689,6.349,2553.7,2553.6,3.9160401]
[1750424277991,0.36634442,2553.7,2553.6,3.9160401]
[1750424278188,7.98,2553.8,2553.6,5.69473378]
[1750424278487,7.979,2553.9,2553.6,5.69473378]
[1750424278664,0.36633751,2553.8,2553.6,5.69473378]
[1750424278868,7.979,2553.9,2553.6,5.69473378]
[1750424279082,0.36635806,2553.8,2553.6,5.69473378]
[1750424279388,0.36636701,2553.7,2553.5,6.00459978]
[1750424279587,11.89461336,2553.9,2553.5,6.00459978]
[1750424279792,0.36628794,2553.8,2553.5,6.00459978]
[1750424279977,11.89461336,2553.9,2553.5,6.00459978]
[1750424280296,0.3662827,2553.8,2553.5,6.00459978]
[1750424280498,7.979,2553.9,2553.5,6.00459978]
[1750424280794,0.36628147,2553.8,2553.5,6.00459978]
[1750424283696,0.36621941,2553.8,2553.5,6.00459978]
[1750424283896,11.89460258,2553.9,2553.5,6.00459978]
[1750424284096,0.36621687,2553.8,2553.5,6.00459978]
[1750424284284,0.36621687,2553.7,2553.5,6.00459978]
[1750424284612,11.89460258,2553.9,2553.5,6.00459978]
[1750424284775,0.36621676,2553.8,2553.5,6.00459978]
[1750424285119,11.89460258,2553.9,2553.5,2.08849862]
[1750424285426,1.18231518,2553.8,2553.5,2.08849862]
[1750424285715,4.28218525,2553.7,2553.5,2.08849862]
[1750424285918,6.346,2553.6,2553.5,2.08849862]
[1750424286082,10.2620401,2553.6,2553.5,2.08849862]
[1750424286406,0.8161,2553.8,2553.5,2.08849862]
[1750424286585,7.978,2553.7,2553.5,6.00466992]
[1750424287298,7.978,2553.7,2553.6,3.9160401]
[1750424287500,7.978,2553.7,2553.5,6.004612]
[1750424289468,3.91559685,2553.9,2553.5,6.004612]
[1750424289668,8.34418767,2553.8,2553.5,6.004612]
[1750424289874,0.36618767,2553.7,2553.5,2.08849862]
[1750424290378,11.89375484,2553.8,2553.5,2.08849862]
[1750424290573,0.36622596,2553.7,2553.5,2.08849862]
[1750424290996,11.89375484,2553.8,2553.5,2.08849862]
[1750424291198,0.36622344,2553.7,2553.5,2.08849862]
[1750424291511,11.89375484,2553.8,2553.5,2.08849862]
[1750424291887,1.19152357,2553.7,2553.5,2.08849862]
[1750424292108,0.8253,2553.7,2553.5,2.08849862]
[1750424292337,4.74120301,2553.7,2553.5,2.08849862]
[1750424292605,0.36630626,2553.6,2553.5,2.08849862]
[1750424293601,0.8253,2553.7,2553.5,2.08849862]
[1750424294470,0.36630155,2553.6,2553.5,2.08849862]
[1750424294671,0.36637507,2553.6,2553.5,6.0045968]
[1750424294895,7.978,2553.6,2553.5,6.0045968]
[1750424296009,7.975,2553.6,2553.5,6.00469207]
[1750424297091,1.629,2553.7,2553.6,3.9159644]
[1750424297271,7.975,2553.7,2553.6,3.9159644]
[1750424297477,0.8167,2554.3,2553.7,0.818]
[1750424297678,2.36191478,2554.2,2553.8,3.91573341]
[1750424298010,8.34145739,2554.1,2554.0,3.91542678]
[1750424298186,8.34143361,2554.1,2554.0,3.91542678]
[1750424298715,8.34143361,2554.1,2553.8,3.91565087]
[1750424298883,0.36643361,2554.0,2553.8,3.91565087]
[1750424299091,0.36643361,2553.9,2553.8,3.91565087]
[1750424300414,7.975,2554.1,2553.9,3.9154747]
[1750424300618,0.36689516,2554.0,2553.9,3.9154747]
[1750424301717,0.36680518,2554.0,2553.9,3.9154747]
[1750424302426,10.0,2554.4,2554.0,3.91542678]
[1750424302579,10.0,2554.2,2554.1,3.91527348]
[1750424302779,10.73360746,2554.2,2554.1,3.91527348]
[1750424303222,10.73345126,2554.2,2554.1,3.91527348]
[1750424303385,10.73345326,2554.2,2554.0,3.91533596]
[1750424303584,6.346,2554.2,2554.0,3.91533596]
[1750424303803,0.36670034,2554.1,2554.0,3.91533596]
[1750424304125,6.346,2554.2,2554.1,3.91527348]
[1750424304298,6.71270038,2554.2,2554.1,3.91527348]
[1750424304927,8.34070038,2554.2,2554.1,4.72317348]
[1750424306081,8.34070038,2554.2,2554.0,3.91535321]
[1750424306286,0.36670038,2554.1,2554.0,3.91535321]
[1750424308717,7.974,2554.2,2554.1,3.91527348]
[1750424308886,8.34049416,2554.2,2554.1,3.91527348]
[1750424310295,0.36649416,2554.2,2554.1,3.91527348]
[1750424310501,1.99549416,2554.2,2554.1,3.91527348]
[1750424310701,8.34049416,2554.2,2554.1,3.91527348]
[1750424311441,1.99549416,2554.2,2554.0,4.72095935]
[1750424311598,7.974,2554.2,2554.1,3.91527348]
[1750424311800,8.3404486,2554.2,2554.1,3.91527348]
[1750424312653,8.3404486,2554.2,2554.0,4.72091463]
[1750424312856,0.3664486,2554.1,2554.0,4.72091463]
[1750424314659,7.974,2554.2,2554.1,3.91527348]
[1750424314953,8.34042611,2554.2,2554.1,3.91527348]
[1750424315111,0.36642611,2554.2,2554.1,3.91527348]
[1750424315315,0.36642611,2554.2,2554.1,4.85968229]
[1750424316359,6.71144705,2554.2,2554.1,4.85968229]
[1750424316529,8.34044705,2554.2,2554.1,3.91527348]
[1750424317568,8.34045404,2554.2,2554.1,3.91527348]
[1750424318151,0.36645404,2554.2,2554.1,3.91527348]
[1750424318352,8.34045404,2554.2,2554.1,3.91527348]
[1750424318711,8.34045404,2554.2,2554.0,4.72091463]
[1750424318712,8.34045404,2554.2,2554.0,4.72091477]
[1750424318954,0.36645404,2554.1,2554.0,4.72091477]
[1750424319316,0.36645404,2554.1,2554.0,3.91533822]
[1750424320225,7.974,2554.2,2554.1,3.91527348]
[1750424320442,8.34048402,2554.2,2554.1,3.91527348]
[1750424321112,7.974,2554.2,2554.1,3.91527348]
[1750424321311,8.34056735,2554.2,2554.1,3.91527348]
[1750424322246,8.34058503,2554.2,2554.1,3.91527348]
[1750424323247,8.34058624,2554.2,2554.1,3.91527348]
[1750424323843,8.34077572,2554.2,2554.1,3.91527348]
[1750424325244,8.34077622,2554.2,2554.1,3.91527348]
[1750424325452,8.34077622,2554.2,2554.0,3.915343]
[1750424325628,0.36677622,2554.1,2554.0,3.915343]
[1750424326030,7.974,2554.2,2554.0,3.915343]
[1750424326351,0.367119,2554.1,2553.7,0.7695]
[1750424326555,0.36713965,2554.0,2553.9,3.91556984]
[1750424328615,7.974,2554.2,2554.1,3.91527348]
[1750424328852,8.70826297,2554.2,2554.0,3.91533008]
[1750424329153,0.36713284,2554.1,2554.0,3.91533008]
[1750424330521,0.36713284,2554.1,2553.9,3.91550238]
[1750424330718,0.36713284,2554.0,2553.9,3.91558009]
[1750424332264,0.36721432,2554.0,2553.9,3.91558009]
[1750424334570,8.7351,2554.2,2554.0,3.91542678]
[1750424334766,0.36725114,2554.1,2554.0,3.91542678]
[1750424335144,0.7686,2554.6,2554.2,3.91497513]
[1750424335357,10.0,2554.4,2554.2,3.91497513]
[1750424335566,0.36722632,2554.3,2554.2,3.91497513]
[1750424336469,0.36720878,2554.3,2554.2,3.91497513]
[1750424338070,0.73441831,2554.3,2554.2,3.91497513]
[1750424338673,0.73441927,2554.3,2554.2,3.91497513]
[1750424339470,8.70741927,2554.3,2554.2,4.78087995]
[1750424339678,8.70736864,2554.3,2554.2,4.78087995]
[1750424340468,8.34018432,2554.3,2554.2,4.78087995]
[1750424340673,0.36718432,2554.3,2554.2,4.78087995]
[1750424341282,10.0,2554.6,2554.5,3.9146604]
[1750424341477,10.95422068,2554.6,2554.5,3.9146604]
[1750424341682,10.95422063,2554.6,2554.5,3.9146604]
[1750424341886,10.95422016,2554.6,2554.5,3.9146604]
[1750424342087,10.0,2554.6,2554.5,3.9146604]
[1750424342280,10.73400006,2554.6,2554.5,3.9146604]
[1750424342480,10.73389888,2554.6,2554.5,3.9146604]
[1750424344089,0.73389888,2554.6,2554.5,3.9146604]
[1750424344294,0.36686462,2554.6,2554.5,5.44820694]
[1750424344590,0.36686462,2554.7,2554.6,3.91450716]
[1750424344756,1.629,2554.8,2554.7,3.91435393]
[1750424345498,1.9954178,2554.8,2554.6,3.91441321]
[1750424345705,1.629,2554.8,2554.6,3.91441321]
[1750424347108,1.629,2554.8,2554.6,3.91443922]
[1750424347487,1.629,2554.8,2554.5,3.91458794]
[1750424347924,0.36627504,2554.7,2554.5,3.91458794]
[1750424348094,0.36627504,2554.7,2554.6,3.91450716]
[1750424348298,1.629,2554.8,2554.4,3.91480591]
[1750424348524,1.629,2554.8,2554.4,3.91468951]
[1750424348822,1.629,2554.8,2554.5,3.91462715]
[1750424349198,1.629,2554.8,2554.6,3.91448066]
[1750424349399,1.629,2554.8,2554.5,3.9145777]
[1750424349823,1.629,2554.8,2554.6,3.91450471]
[1750424350730,1.629,2554.8,2554.5,3.91456861]
[1750424351027,0.7861,2554.7,2554.4,3.91470234]
[1750424351194,6.348,2554.6,2554.5,3.9146404]
[1750424355590,6.348,2554.6,2554.4,3.91473507]
[1750424356440,6.348,2554.6,2554.5,3.9146604]
[1750424357426,6.71409951,2554.6,2554.5,3.9146604]
[1750424357636,6.348,2554.6,2554.5,3.9146604]
[1750424357934,6.71411149,2554.6,2554.5,3.9146604]
[1750424358399,6.348,2554.6,2554.5,3.9146604]
[1750424359036,6.71409855,2554.6,2554.1,0.83]
[1750424359349,6.348,2554.6,2554.4,3.91473166]
[1750424360126,6.348,2554.6,2554.3,3.91487744]
[1750424360532,6.348,2554.6,2554.4,3.91479817]
[1750424362331,6.348,2554.6,2554.5,3.9146604]
[1750424362534,6.71414291,2554.6,2554.4,3.9147224]
[1750424362702,6.348,2554.6,2554.4,3.9147224]
[1750424363219,6.348,2554.6,2554.3,3.91488801]
[1750424363637,6.348,2554.6,2554.2,3.91506865]
[1750424363935,0.36622798,2554.5,2554.3,3.91495948]
[1750424364507,0.36622798,2554.5,2554.2,3.91510371]
[1750424364950,0.36622798,2554.5,2554.3,3.91496524]
[1750424365155,6.348,2554.6,2554.3,3.91496524]
[1750424365356,0.3662917,2554.5,2554.3,3.91496524]
[1750424365556,6.348,2554.6,2554.3,3.91496524]
[1750424365860,0.36632372,2554.5,2554.3,3.91496524]
[1750424366023,6.348,2554.6,2554.3,3.91496524]
[1750424366220,0.36635402,2554.5,2554.3,3.91496524]
[1750424366450,6.348,2554.6,2554.3,3.91496524]
[1750424366759,0.36634458,2554.5,2554.4,3.91481365]
[1750424367478,0.36634458,2554.5,2554.3,3.91488126]
[1750424367638,6.348,2554.6,2554.3,3.91488126]
[1750424367846,0.36651647,2554.5,2554.3,3.91488126]
[1750424368146,0.36651652,2554.4,2554.3,3.91488126]
[1750424370029,6.348,2554.6,2554.2,3.91507196]
[1750424370229,5.4740177,2554.5,2554.0,3.91542482]
[1750424370467,0.73338706,2554.4,2553.9,3.91551026]
[1750424370765,1.629,2554.3,2554.1,3.91525731]
[1750424370941,7.07643816,2554.2,2554.0,3.91535518]
[1750424371142,6.343,2554.2,2554.1,3.91527348]
[1750424371369,6.70973735,2554.2,2554.1,3.91527348]
[1750424373240,6.70957978,2554.2,2554.1,3.91527348]
[1750424373747,7.07616748,2554.2,2554.0,3.91537923]
[1750424373935,0.36657978,2554.1,2554.0,3.91537923]
[1750424374140,0.36647233,2554.1,2554.0,3.91537923]
[1750424376274,7.1277,2554.2,2554.0,3.91537923]
[1750424376475,7.1277,2554.2,2554.0,3.91534357]
[1750424376663,0.36643278,2554.1,2553.9,3.91548555]
[1750424376864,7.1277,2554.2,2554.0,3.91542678]
[1750424377068,0.36647402,2554.1,2554.0,3.91542678]
[1750424378201,0.36640181,2554.1,2554.0,3.91542678]
[1750424378987,0.7847,2554.2,2554.1,3.91527348]
[1750424379194,9.12411271,2554.2,2554.1,3.91527348]
[1750424379489,8.33841271,2554.2,2554.1,3.91527348]
[1750424379691,8.33839502,2554.2,2554.1,3.91527348]
[1750424381006,8.33840309,2554.2,2554.1,3.91527348]
[1750424382263,8.33845117,2554.2,2554.1,3.91527348]
[1750424382966,8.338469,2554.2,2554.1,3.91527348]
[1750424383295,0.366469,2554.2,2554.1,3.91527348]
[1750424383466,8.33846794,2554.2,2554.1,4.77335351]
[1750424383964,8.33846794,2554.2,2554.1,3.91527348]
[1750424385199,8.33852926,2554.2,2554.1,3.91527348]
[1750424385802,8.33855128,2554.2,2554.1,3.91527348]
[1750424386800,0.36655128,2554.2,2554.1,3.91527348]
[1750424387196,8.33855128,2554.2,2554.1,3.91527348]
[1750424387913,8.33861788,2554.2,2554.1,3.91527348]
[1750424390410,0.36661788,2554.2,2554.1,3.91527348]
[1750424390613,7.971,2554.2,2554.1,3.91527348]
[1750424390915,10.0,2554.5,2554.2,3.9150234]
[1750424391090,7.971,2554.4,2554.2,3.9150234]
[1750424391479,0.73338704,2554.3,2554.2,3.9150234]
[1750424392887,0.73342474,2554.3,2554.2,3.9150234]
[1750424393306,0.73350484,2554.3,2554.2,3.9150234]
[1750424393921,0.7335613,2554.3,2554.2,3.9150234]
[1750424395533,0.73360947,2554.3,2554.2,3.9150234]
[1750424395690,0.73365765,2554.3,2554.2,3.9150234]
[1750424396928,0.73369632,2554.3,2554.2,3.9150234]
[1750424397419,0.73369598,2554.3,2554.2,3.9150234]
[1750424397625,0.73369546,2554.3,2554.2,3.9150234]
[1750424399221,0.36684773,2554.3,2554.2,3.9150234]
[1750424399524,0.73376202,2554.3,2554.2,3.9150234]
[1750424399685,0.73406322,2554.3,2554.2,3.9150234]
[1750424400114,0.73406962,2554.3,2554.2,3.9150234]
[1750424400314,0.73406924,2554.3,2554.2,3.9150234]
[1750424400495,0.36703763,2554.3,2554.2,3.9150234]
[1750424400713,0.73407501,2554.3,2554.2,3.9150234]
[1750424400916,8.70506758,2554.3,2554.2,5.45635287]
[1750424401117,8.70506778,2554.3,2554.2,5.45635287]
[1750424401341,8.7050626,2554.3,2554.2,5.45635287]
[1750424401503,0.7340626,2554.3,2554.2,5.45635287]
[1750424401705,8.7050626,2554.3,2554.2,5.45635287]
[1750424402008,8.3380313,2554.3,2554.2,5.45635287]
[1750424402486,8.33801898,2554.3,2554.2,5.45635287]
[1750424402690,7.971,2554.3,2554.2,5.45635287]
[1750424402913,8.33801869,2554.3,2554.2,5.45635287]
[1750424403630,0.36701869,2554.3,2554.2,5.45635287]
[1750424404132,1.628,2554.6,2554.5,3.9146604]
[1750424404439,1.99475399,2554.6,2554.5,5.51020448]
[1750424404734,11.88209066,2556.2,2554.6,3.91450716]
[1750424404735,1.628,2555.4,2554.6,3.91450716]
[1750424405024,0.73335212,2555.3,2555.2,3.91358797]
[1750424405229,11.628,2555.4,2555.3,3.91343482]
[1750424405405,12.36131622,2555.4,2555.3,3.91343482]
[1750424405719,12.36131622,2555.4,2555.1,3.91367409]
[1750424405932,0.73331622,2555.3,2555.2,3.91358797]
[1750424406220,0.73334703,2555.3,2555.2,3.91358797]
[1750424406592,0.36668892,2555.3,2555.2,3.91358797]
[1750424408147,0.36589313,2555.3,2555.2,3.91358797]
[1750424408336,11.628,2555.4,2555.2,3.91358797]
[1750424408337,12.441,2555.4,2555.2,3.91358797]
[1750424408545,0.36589391,2555.3,2555.2,3.91358797]
[1750424408719,0.36589391,2555.3,2555.1,3.91365449]
[1750424408915,6.342,2555.2,2555.1,3.91365449]
[1750424410350,6.342,2555.2,2555.1,4.77766287]
[1750424412246,6.342,2555.2,2555.1,3.91365449]
[1750424413366,6.70731912,2555.2,2554.6,4.68176742]
[1750424413570,6.342,2555.2,2554.6,0.7673]
[1750424413721,6.342,2555.2,2554.8,3.9140964]
[1750424413920,6.342,2555.2,2554.8,3.91413369]
[1750424414214,6.342,2555.2,2554.7,3.91420703]
[1750424414447,6.342,2555.2,2554.8,3.91413116]
[1750424414649,1.628,2555.1,2555.0,3.91383191]
[1750424414854,7.969,2555.1,2555.0,3.91383191]
[1750424415521,7.969,2555.1,2555.0,3.913829]
[1750424416245,0.7834,2555.5,2555.2,3.91352097]
[1750424416449,7.969,2555.4,2555.2,3.91352097]
[1750424416818,17.969,2555.4,2555.3,3.91343482]
[1750424417020,18.33422006,2555.4,2555.3,3.91343482]
[1750424417759,18.33422006,2555.4,2555.2,3.91350251]
[1750424417925,17.969,2555.4,2555.3,3.91343482]
[1750424418128,18.33422012,2555.4,2555.2,3.9135211]
[1750424418327,17.969,2555.4,2555.2,3.9135211]
[1750424418570,11.628,2555.4,2555.2,3.9135211]
[1750424418946,11.628,2555.4,2555.1,3.91366842]
[1750424419569,11.628,2555.4,2555.2,3.91355972]
[1750424419771,1.628,2555.4,2555.3,3.91343482]
[1750424420063,10.7959,2555.7,2555.4,3.91324886]
[1750424420360,10.0,2555.5,2555.4,3.91324886]
[1750424420973,10.0,2555.5,2555.3,3.91334652]
[1750424422040,10.0,2555.5,2555.4,3.91328167]
[1750424422603,10.0,2555.5,2555.3,3.91336065]
[1750424423040,10.0,2555.5,2555.4,3.91328167]
[1750424423241,1.627,2555.6,2555.5,3.91312854]
[1750424423440,10.0,2555.5,2555.4,3.91318779]
[1750424423741,10.0,2555.5,2555.3,3.91335501]
[1750424424074,10.0,2555.5,2555.4,3.91328167]
[1750424424276,1.627,2555.6,2555.4,3.91328167]
[1750424424480,6.34,2555.5,2555.4,3.91328167]
[1750424427350,6.34,2555.5,2555.2,0.7859]
[1750424427610,0.36565784,2555.4,2555.1,3.91364809]
[1750424427786,7.1457,2555.5,2555.1,3.91374114]
[1750424427987,6.34,2555.5,2555.3,3.91332231]
[1750424428950,10.7737,2555.7,2555.3,3.91332231]
[1750424429151,8.69840999,2555.6,2555.3,3.91332231]
[1750424429392,0.36570535,2555.5,2555.3,3.91332231]
[1750424429552,0.36570535,2555.4,2555.3,3.91332231]
[1750424429747,0.36570535,2555.5,2555.3,3.91332231]
[1750424430052,0.36570535,2555.4,2555.3,3.91332231]
[1750424430355,0.36622591,2555.4,2555.2,3.91350054]
[1750424430670,6.70622872,2555.3,2555.2,3.91350054]
[1750424430980,6.70622872,2555.3,2555.0,0.8182]
[1750424431197,0.36622872,2555.2,2555.0,3.91377954]
[1750424431379,1.627,2555.1,2555.0,3.91377954]
[1750424433068,1.627,2555.1,2555.0,4.77764725]
[1750424434319,0.7694,2555.6,2555.0,0.90300373]
[1750424434489,10.39234959,2556.0,2555.0,0.90300373]
[1750424434490,7.966,2555.3,2555.2,3.91358797]
[1750424434690,8.33266045,2555.3,2555.2,3.91358797]
[1750424434894,1.99366045,2555.3,2555.2,3.91358797]
[1750424435095,1.99365888,2555.3,2555.2,3.91358797]
[1750424435676,0.36665888,2555.3,2555.2,3.91358797]
[1750424435878,0.36665888,2555.3,2555.2,4.77177862]
[1750424436414,1.627,2555.4,2555.3,3.91343482]
[1750424436616,1.9936402,2555.4,2555.3,3.91343482]
[1750424438584,1.99361005,2555.4,2555.3,3.91343482]
[1750424439110,1.99361013,2555.4,2555.3,3.91343482]
[1750424439282,1.99361008,2555.4,2555.3,5.24878802]
[1750424441111,10.7912,2556.0,2555.6,3.91293896]
[1750424441316,6.339,2555.8,2555.7,3.91282231]
[1750424441477,7.29205501,2555.8,2555.7,3.91282231]
[1750424441677,0.95303137,2555.8,2555.6,3.91289579]
[1750424441882,0.73307789,2555.7,2555.6,3.91289579]
[1750424442100,0.3665183,2555.7,2555.6,3.91289579]
[1750424442307,0.7330366,2555.7,2555.6,3.91289579]
[1750424442681,0.73303654,2555.7,2555.6,3.91289579]
[1750424443015,0.73303638,2555.7,2555.6,3.91289579]
[1750424443212,0.36651814,2555.7,2555.6,3.91289579]
[1750424443517,0.73303631,2555.7,2555.6,3.91289579]
[1750424444019,0.73298426,2555.7,2555.6,3.91289579]
[1750424444317,0.73298429,2555.7,2555.6,3.91289579]
[1750424445130,0.733271,2555.7,2555.6,3.91289579]
[1750424445606,0.73327027,2555.7,2555.6,4.68509579]
[1750424445922,0.73327027,2555.7,2555.6,5.54491746]
[1750424446092,0.73326362,2555.7,2555.6,4.68509579]
[1750424446299,0.73330063,2555.7,2555.6,3.91289579]
[1750424446621,0.73330063,2555.7,2555.5,3.91312605]
[1750424446925,0.73330063,2555.6,2555.5,3.91312605]
[1750424447289,2.3814,2555.8,2555.5,3.91312605]
[1750424447492,0.73322464,2555.7,2555.6,3.91297542]
[1750424447694,0.73322455,2555.7,2555.6,3.91297542]
[1750424447991,0.73322454,2555.7,2555.6,3.91297542]
[1750424448395,0.36661227,2555.7,2555.6,3.91297542]
[1750424448698,0.73324579,2555.7,2555.6,3.91297542]
[1750424449531,0.73326684,2555.7,2555.6,3.91297542]
[1750424449830,0.73326687,2555.7,2555.6,3.91297542]
[1750424450828,0.73324761,2555.7,2555.6,3.91297542]
[1750424451831,0.73322829,2555.7,2555.6,3.91297542]
[1750424452207,0.73322692,2555.7,2555.6,3.91297542]
[1750424452533,0.73321517,2555.7,2555.6,3.91297542]
[1750424453598,1.627,2555.8,2555.7,3.91282231]
[1750424453799,2.36017991,2555.8,2555.7,3.91282231]
[1750424455337,2.36017991,2555.8,2555.6,3.91288023]
[1750424455503,0.73315123,2555.7,2555.6,3.91288023]
[1750424455696,0.7331207,2555.7,2555.6,3.91288023]
[1750424456645,0.73308952,2555.7,2555.6,3.91288023]
[1750424456952,0.73308948,2555.7,2555.6,3.91288023]
[1750424457307,0.36654476,2555.7,2555.6,3.91288023]
[1750424457508,0.73308244,2555.7,2555.6,3.91288023]
[1750424458251,0.73307558,2555.7,2555.6,3.91288023]
[1750424458557,1.627,2555.8,2555.7,3.91282231]
[1750424458715,2.36012326,2555.8,2555.7,3.91282231]
[1750424458915,2.36012314,2555.8,2555.7,3.91282231]
[1750424459437,2.36012388,2555.8,2555.7,3.91282231]
[1750424459861,2.36012385,2555.8,2555.7,3.91282231]
[1750424460655,8.69812385,2555.8,2555.7,3.91282231]
[1750424462045,8.69824766,2555.8,2555.7,3.91282231]
[1750424462437,8.6982475,2555.8,2555.7,3.91282231]
[1750424462749,8.6982475,2555.8,2555.5,4.71037127]
[1750424463047,0.7332475,2555.7,2555.5,4.71037127]
[1750424463254,7.965,2555.8,2555.6,3.91297542]
[1750424463447,0.7335105,2555.7,2555.6,3.91297542]
[1750424463862,0.73351044,2555.7,2555.6,3.91297542]
[1750424464753,0.73351044,2555.7,2555.5,3.91306817]
[1750424465050,0.73368305,2555.6,2555.5,3.91306817]
[1750424466155,0.36684155,2555.6,2555.5,4.77610564]
[1750424466317,0.36684155,2555.6,2555.5,5.55670564]
[1750424466523,0.36684155,2555.6,2555.5,5.59583292]
[1750424467124,0.36684155,2555.6,2555.5,5.55670564]
[1750424467749,7.964,2555.9,2555.8,3.91266922]
[1750424467952,8.91779269,2555.9,2555.8,3.91266922]
[1750424468127,8.69768675,2555.9,2555.8,3.91266922]
[1750424468654,2.35968675,2555.9,2555.8,4.69912751]
[1750424468852,2.35968675,2555.9,2555.8,5.50612751]
[1750424469049,0.73365137,2555.9,2555.8,5.50612751]
[1750424469349,0.73361503,2555.9,2555.8,5.50612751]
[1750424469547,0.36680813,2555.9,2555.8,5.54524973]
[1750424469765,0.36680813,2555.9,2555.8,5.54524964]
[1750424469766,0.73362415,2555.9,2555.8,5.54524964]
[1750424470063,0.36680813,2555.9,2555.8,5.54524964]